fUSD/lending_fUSD_20250417
["ID","MTS","AMOUNT","RATE_DAILY","PERIOD"]
[358282881,1744895448688,-500.0,0.00072118,120]
[358282882,1744895448697,-500.0,0.00072118,30]
[358282883,1744895448707,-500.0,0.00072118,120]
[358282884,1744895448717,-500.0,0.00072118,120]
[358282885,1744895448727,-500.0,0.00072118,120]
[358282886,1744895448736,-436.83,0.00072118,120]
[358282887,1744895448746,-500.0,0.00072118,120]
[358282888,1744895448756,-500.0,0.00072118,120]
[358282889,1744895448766,-500.0,0.00072118,120]
[358282890,1744895448775,-500.0,0.00072118,120]
[358282891,1744895448785,-500.0,0.00072218,120]
[358282892,1744895448795,-500.0,0.00072218,120]
[358282893,1744895448805,-500.0,0.00072218,120]
[358282894,1744895448814,-507.19238436,0.00072218,120]
[358282895,1744895448825,-500.0,0.00072218,120]
[358282896,1744895448835,-289.12663344,0.00072218,120]
[358282897,1744895448845,-500.0,0.00072218,120]
[358282898,1744895448855,-603.65905054,0.00072218,120]
[358282899,1744895448865,-500.0,0.00072218,120]
[358282900,1744895448875,-500.0,0.00072218,120]
[358282901,1744895448885,-306.46,0.00072218,35]
[358282902,1744895448894,-500.0,0.00072218,120]
[358282903,1744895448904,-500.0,0.00072218,120]
[358282904,1744895448914,-630.8,0.00072218,120]
[358282905,1744895448924,-500.0,0.00072218,120]
[358282906,1744895448935,-500.0,0.00072218,120]
[358282907,1744895448945,-500.0,0.00072218,120]
[358282908,1744895448958,-500.0,0.00072218,120]
[358282909,1744895448968,-500.0,0.00072218,120]
[358282910,1744895448977,-500.0,0.00072218,120]
[358282911,1744895448987,-500.0,0.00072218,120]
[358282912,1744895448997,-500.0,0.00072218,120]
[358282913,1744895449006,-500.0,0.00072218,120]
[358282914,1744895449016,-236.8,0.00072218,120]
[358282915,1744895449026,-500.0,0.00072218,120]
[358282916,1744895449035,-500.0,0.00072218,120]
[358282917,1744895449044,-500.0,0.00072218,120]
[358282918,1744895449054,-500.0,0.00072218,120]
[358282919,1744895449063,-161.8,0.00072218,120]
[358282920,1744895449073,-500.0,0.00072218,120]
[358282921,1744895449082,-500.0,0.00072218,120]
[358282922,1744895449092,-327.09,0.00072218,120]
[358282923,1744895449101,-5122.65,0.00072218,7]
[358282924,1744895449111,-500.0,0.00072218,120]
[358282925,1744895449121,-500.0,0.00072218,120]
[358282926,1744895449131,-500.0,0.00072218,120]
[358282927,1744895449141,-597.55,0.00072218,120]
[358282928,1744895449152,-500.0,0.00072218,120]
[358282929,1744895449163,-500.0,0.00072218,120]
[358282930,1744895449172,-500.0,0.00072218,120]
[358282931,1744895449181,-500.0,0.00072218,120]
[358282932,1744895449191,-500.0,0.00072218,120]
[358282933,1744895449200,-500.0,0.00072218,120]
[358282934,1744895449209,-500.0,0.00072218,120]
[358282935,1744895449218,-500.0,0.00072218,120]
[358282936,1744895449228,-500.0,0.00072218,120]
[358282937,1744895449238,-500.0,0.00072218,120]
[358282938,1744895449249,-500.0,0.00072218,120]
[358282939,1744895449259,-500.0,0.00072218,120]
[358282940,1744895449268,-500.0,0.00072218,120]
[358282941,1744895449278,-500.0,0.00072218,120]
[358282942,1744895449287,-500.0,0.00072218,120]
[358282943,1744895449296,-500.0,0.00072218,120]
[358282944,1744895449305,-500.0,0.00072218,120]
[358282945,1744895449316,-482.5749389,0.00072777,15]
[358282946,1744895449325,-1938.74756669,0.0007292,15]
[358282947,1744895449335,-158.23,0.00073734,2]
[358282948,1744895449344,-172.97,0.00073737,2]
[358282949,1744895449354,-482.5749389,0.00074558,15]
[358282950,1744895449363,-1938.74756669,0.0007475,15]
[358282951,1744895449373,-500.0,0.00074973,15]
[358282952,1744895449383,-500000.0,0.00075,120]
[358282953,1744895449392,-320.254,0.0007541,120]
[358282954,1744895449402,-158.23,0.00075998,2]
[358282955,1744895449412,-482.5749389,0.00076338,15]
[358282956,1744895449421,-162.81,0.00076411,2]
[358282957,1744895449432,-1938.74756669,0.00076579,15]
[358282958,1744895449442,-500000.0,0.00077,120]
[358282959,1744895449560,-482.5749389,0.00078119,15]
[358282960,1744895449571,-158.23,0.00078262,2]
[358282961,1744895449581,-1938.74756669,0.00078409,15]
[358282962,1744895449591,-172.97,0.00079358,2]
[358282963,1744895449601,-274.70577728,0.00079452,120]
[358282964,1744895449611,-238.46,0.00079452,120]
[358282965,1744895449620,-500.0,0.00079452,2]
[358282966,1744895449631,-500.0,0.00079452,120]
[358282967,1744895449641,-500.0,0.00079452,120]
[358282968,1744895449651,-482.5749389,0.000799,15]
[358282969,1744895449661,-500000.0,0.0008,120]
[358282970,1744895449671,-100000.0,0.0008,120]
[358282971,1744895449680,-1938.74756669,0.00080238,15]
[358282972,1744895449690,-500.0,0.00080338,120]
[358282973,1744895449700,-500.0,0.00080338,120]
[358282974,1744895449710,-195.46,0.00080338,120]
[358282975,1744895449721,-500.0,0.00080338,120]
[358282976,1744895449731,-500.0,0.00080338,120]
[358282977,1744895449741,-500.0,0.00080338,120]
[358282978,1744895449751,-500.0,0.00080338,120]
[358282979,1744895449761,-500.0,0.00080338,120]
[358282980,1744895449771,-500.0,0.00080338,120]
[358282981,1744895449781,-500.0,0.00080338,120]
[358282982,1744895449791,-500.0,0.00080338,120]
[358282983,1744895449801,-500.0,0.00080338,120]
[358282984,1744895449811,-500.0,0.00080338,120]
[358282985,1744895449822,-500.0,0.00080338,120]
[358282986,1744895449832,-500.0,0.00080338,120]
[358282987,1744895449843,-500.0,0.00080338,120]
[358282988,1744895449853,-161.90073423,0.00080338,120]
[358282989,1744895449863,-500.0,0.00080338,120]
[358282990,1744895449873,-500.0,0.00080338,120]
[358282991,1744895449883,-500.0,0.00080338,120]
[358282992,1744895449893,-500.0,0.00080338,120]
[358282993,1744895449902,-500.0,0.00080338,120]
[358282994,1744895449912,-500.0,0.00080338,120]
[358282995,1744895449922,-500.0,0.00080338,120]
[358282996,1744895449932,-500.0,0.00080338,30]
[358282997,1744895449942,-500.0,0.00080338,120]
[358282998,1744895449951,-500.0,0.00080338,120]
[358282999,1744895449963,-500.0,0.00080338,120]
[358283000,1744895449973,-500.0,0.00080338,120]
[358283001,1744895449982,-500.0,0.00080438,120]
[358283002,1744895449992,-500.0,0.00080438,120]
[358283003,1744895450003,-500.0,0.00080438,120]
[358283004,1744895450013,-500.0,0.00080438,120]
[358283005,1744895450023,-500.0,0.00080438,120]
[358283006,1744895450032,-500.0,0.00080438,120]
[358283007,1744895450041,-500.0,0.00080438,120]
[358283008,1744895450051,-500.0,0.00080438,120]
[358283009,1744895450061,-500.0,0.00080438,120]
[358283010,1744895450071,-502.79,0.00080438,120]
[358283011,1744895450080,-500.0,0.00080438,120]
[358283012,1744895450090,-500.0,0.00080438,120]
[358283013,1744895450100,-500.0,0.00080438,120]
[358283014,1744895450110,-500.0,0.00080438,120]
[358283015,1744895450119,-500.0,0.00080438,120]
[358283016,1744895450128,-500.0,0.00080438,120]
[358283017,1744895450138,-607.18,0.00080438,120]
[358283018,1744895450148,-500.0,0.00080438,120]
[358283019,1744895450159,-5122.65,0.00080438,7]
[358283020,1744895450170,-500.0,0.00080438,120]
[358283021,1744895450183,-500.0,0.00080438,120]
[358283022,1744895450193,-500.0,0.00080438,120]
[358283023,1744895450202,-500.0,0.00080438,120]
[358283024,1744895450211,-500.0,0.00080438,120]
[358283025,1744895450221,-500.0,0.00080438,120]
[358283026,1744895450230,-510.76,0.00080438,120]
[358283027,1744895450239,-500.0,0.00080438,120]
[358283028,1744895450249,-500.0,0.00080438,120]
[358283029,1744895450259,-500.0,0.00080438,120]
[358283030,1744895450268,-500.0,0.00080438,120]
[358283031,1744895450277,-500.0,0.00080438,120]
[358283032,1744895450287,-500.0,0.00080438,120]
[358283033,1744895450295,-331.00484655,0.00080452,15]
[358283034,1744895450304,-158.23,0.00080526,2]
[358283035,1744895450314,-158.23,0.00082789,2]
[358283036,1744895450324,-158.23,0.00085053,2]
[358283037,1744895450333,-2000.0,0.00086797,120]
[358283038,1744895450342,-150.0,0.00086901,120]
[358283039,1744895450351,-320.254,0.0008694,120]
[358283040,1744895450361,-158.23,0.00087317,2]
[358283041,1744895450370,-512.26,0.00087671,120]
[358283042,1744895450379,-420.62617719,0.00087671,120]
[358283043,1744895450388,-500.0,0.00088557,120]
[358283044,1744895450398,-500.0,0.00088557,120]
[358283045,1744895450407,-500.0,0.00088557,120]
[358283046,1744895450417,-500.0,0.00088557,120]
[358283047,1744895450426,-500.0,0.00088557,120]
[358283048,1744895450436,-500.0,0.00088557,120]
[358283049,1744895450445,-500.0,0.00088557,120]
[358283050,1744895450455,-500.0,0.00088557,120]
[358283051,1744895450465,-611.76,0.00088557,120]
[358283052,1744895450475,-347.62,0.00088557,120]
[358283053,1744895450484,-286.59,0.00088557,120]
[358283054,1744895450494,-500.0,0.00088557,120]
[358283055,1744895450503,-500.0,0.00088557,30]
[358283056,1744895450513,-500.0,0.00088557,120]
[358283057,1744895450522,-355.26,0.00088657,120]
[358283058,1744895450532,-507.98792252,0.00088657,120]
[358283059,1744895450542,-500.0,0.00088657,120]
[358283060,1744895450551,-641.99,0.00088657,120]
[358283061,1744895450560,-359.54504944,0.00088657,120]
[358283062,1744895450571,-500.0,0.00088657,120]
[358283063,1744895450580,-500.0,0.00088657,120]
[358283064,1744895450589,-500.0,0.00088657,120]
[358283065,1744895450599,-5122.65,0.00088657,7]
[358283066,1744895450608,-608.40692542,0.00088657,120]
[358283067,1744895450617,-500.0,0.00088657,120]
[358283068,1744895450627,-500.0,0.00088657,120]
[358283069,1744895450636,-500.0,0.00088657,120]
[358283070,1744895450645,-500.0,0.00088657,120]
[358283071,1744895450654,-500.0,0.00088657,120]
[358283072,1744895450663,-500.0,0.00088657,120]
[358283073,1744895450672,-158.23,0.00089581,2]
[358283074,1744895450681,-5000.0,0.0009,120]
[358283075,1744895450690,-376301.0,0.0009,120]
[358283076,1744895450700,-158.23,0.00091845,2]
[358283077,1744895450709,-260.69,0.00092251,30]
[358283078,1744895450719,-158.23,0.00094109,2]
[358283079,1744895450728,-401.09,0.00095123,120]
[358283080,1744895450739,-1000.0,0.00095633,120]
[358283081,1744895450748,-158.23,0.00096373,2]
[358283082,1744895450758,-184.09,0.00096776,120]
[358283083,1744895450767,-500.0,0.00096776,120]
[358283084,1744895450776,-500.0,0.00096876,120]
[358283085,1744895450786,-500.0,0.00096876,120]
[358283086,1744895450795,-5122.65,0.00096876,7]
[358283087,1744895450805,-500.0,0.00096876,120]
[358283088,1744895450814,-500.0,0.00096876,120]
[358283089,1744895450825,-500.0,0.00096876,120]
[358283090,1744895450834,-320.254,0.0009847,120]
[358283091,1744895450843,-328.0,0.00098603,120]
[358283092,1744895450852,-376.50105532,0.0009863,120]
[358283093,1744895450862,-500.0,0.0009863,120]
[358283094,1744895450871,-500.0,0.0009863,120]
[358283095,1744895450880,-599.72853609,0.0009863,120]
[358283096,1744895450890,-500.0,0.0009863,120]
[358283097,1744895450900,-500.0,0.0009863,120]
[358283098,1744895450910,-500.0,0.0009863,120]
[358283099,1744895450919,-504.11838068,0.0009863,120]
[358283100,1744895450929,-500.0,0.0009863,120]
[358283101,1744895450939,-515.52,0.0009863,120]
[358283102,1744895450948,-500.0,0.0009863,120]
[358283103,1744895450960,-534.84057992,0.0009863,120]
[358283104,1744895450969,-512.80556907,0.0009863,120]
[358283105,1744895450979,-500.0,0.0009863,120]
[358283106,1744895450988,-507.96859142,0.0009863,120]
[358283107,1744895450998,-500.0,0.0009863,120]
[358283108,1744895451008,-562.14850365,0.0009863,120]
[358283109,1744895451017,-500.0,0.0009863,120]
[358283110,1744895451026,-500.0,0.0009863,120]
[358283111,1744895451039,-500.0,0.0009863,120]
[358283112,1744895451048,-500.0,0.0009863,120]
[358283113,1744895451057,-500.0,0.0009863,120]
[358283114,1744895451066,-500.0,0.0009863,120]
[358283115,1744895451076,-500.0,0.0009863,120]
[358283116,1744895451085,-500.0,0.0009863,120]
[358283117,1744895451094,-500.0,0.0009863,14]
[358283118,1744895451103,-500.0,0.0009863,120]
[358283119,1744895451113,-194.06844707,0.0009863,120]
[358283120,1744895451123,-500.0,0.0009863,120]
[358283121,1744895451132,-500.0,0.0009863,120]
[358283122,1744895451141,-500.0,0.0009863,120]
[358283123,1744895451150,-2019.82409034,0.0009863,2]
[358283124,1744895451159,-500.0,0.0009863,120]
[358283125,1744895451168,-392.527066,0.0009863,120]
[358283126,1744895451178,-500.0,0.0009863,120]
[358283127,1744895451187,-500.0,0.0009863,120]
[358283128,1744895451196,-500.0,0.0009863,120]
[358283129,1744895451205,-500.0,0.0009863,120]
[358283130,1744895451215,-500.0,0.0009863,120]
[358283131,1744895451224,-514.29067209,0.0009863,120]
[358283132,1744895451233,-497.50100002,0.0009863,120]
[358283133,1744895451243,-500.0,0.0009863,120]
[358283134,1744895451252,-266.39536749,0.0009863,120]
[358283135,1744895451263,-500.0,0.0009863,120]
[358283136,1744895451272,-500.0,0.0009863,120]
[358283137,1744895451283,-500.0,0.0009863,120]
[358283138,1744895451294,-500.0,0.0009863,120]
[358283139,1744895451304,-500.0,0.0009863,120]
[358283140,1744895451314,-500.0,0.0009863,120]
[358283141,1744895451324,-500.0,0.0009863,120]
[358283142,1744895451333,-500.0,0.0009863,120]
[358283143,1744895451343,-500.0,0.0009863,120]
[358283144,1744895451352,-500.0,0.0009863,120]
[358283145,1744895451362,-500.0,0.0009863,120]
[358283146,1744895451371,-500.0,0.0009863,120]
[358283147,1744895451380,-500.0,0.0009863,120]
[358283148,1744895451389,-500.0,0.0009863,120]
[358283149,1744895451399,-500.0,0.0009863,120]
[358283150,1744895451408,-500.0,0.0009863,120]
[358283151,1744895451417,-563.68,0.0009863,120]
[358283152,1744895451426,-500.0,0.0009863,120]
[358283153,1744895451435,-500.0,0.0009863,120]
[358283154,1744895451444,-500.0,0.0009863,120]
[358283155,1744895451453,-500.0,0.0009863,120]
[358283156,1744895451463,-500.0,0.0009863,120]
[358283157,1744895451473,-500.0,0.0009863,2]
[358283158,1744895451483,-515.85028159,0.0009863,120]
[358283159,1744895451494,-388.87507812,0.0009863,120]
[358283160,1744895451504,-500.0,0.0009863,120]
[358283161,1744895451513,-500.0,0.0009863,120]
[358283162,1744895451523,-500.0,0.0009863,120]
[358283163,1744895451532,-500.0,0.0009863,120]
[358283164,1744895451541,-536.8733054,0.0009863,120]
[358283165,1744895451552,-500.0,0.0009863,120]
[358283166,1744895451561,-359.69960649,0.0009863,120]
[358283167,1744895451571,-526.38,0.0009863,120]
[358283168,1744895451580,-500.0,0.0009863,120]
[358283169,1744895451590,-500.0,0.0009863,120]
[358283170,1744895451599,-500.0,0.0009863,120]
[358283171,1744895451608,-522.4,0.0009863,120]
[358283172,1744895451618,-500.0,0.0009863,120]
[358283173,1744895451627,-526.96623965,0.0009863,120]
[358283174,1744895451636,-500.0,0.0009863,120]
[358283175,1744895451646,-500.0,0.0009863,120]
[358283176,1744895451655,-500.0,0.0009863,120]
[358283177,1744895451664,-500.0,0.0009863,120]
[358283178,1744895451673,-500.0,0.0009863,120]
[358283179,1744895451682,-500.0,0.0009863,120]
[358283180,1744895451691,-500.0,0.0009863,120]
[358283181,1744895451700,-500.0,0.0009863,120]
[358283182,1744895451710,-500.0,0.0009863,120]
[358283183,1744895451719,-500.0,0.0009863,120]
[358283184,1744895451728,-500.0,0.0009863,120]
[358283185,1744895451738,-500.0,0.0009863,120]
[358283186,1744895451747,-500.0,0.0009863,120]
[358283187,1744895451757,-500.0,0.0009863,120]
[358283188,1744895451767,-500.0,0.0009863,120]
[358283189,1744895451776,-500.0,0.0009863,120]
[358283190,1744895451785,-500.0,0.0009863,120]
[358283191,1744895451795,-500.0,0.0009863,120]
[358283192,1744895451804,-500.0,0.0009863,120]
[358283193,1744895451814,-500.0,0.0009863,120]
[358283194,1744895451824,-500.0,0.0009863,120]
[358283195,1744895451834,-637.82374794,0.0009863,120]
[358283196,1744895451842,-500.0,0.0009863,120]
[358283197,1744895451853,-386.44573778,0.0009863,120]
[358283198,1744895451862,-500.0,0.0009863,120]
[358283199,1744895451870,-500.0,0.0009863,120]
[358283200,1744895451878,-500.0,0.0009863,120]
[358283201,1744895451887,-500.0,0.0009863,120]
[358283202,1744895451896,-500.0,0.0009863,120]
[358283203,1744895451906,-500.0,0.0009863,120]
[358283204,1744895451915,-540.43,0.0009863,120]
[358283205,1744895451924,-532.3029607,0.0009863,120]
[358283206,1744895451934,-500.0,0.0009863,120]
[358283207,1744895451943,-500.0,0.0009863,120]
[358283208,1744895451953,-500.0,0.0009863,120]
[358283209,1744895451964,-500.0,0.0009863,120]
[358283210,1744895451974,-500.0,0.0009863,120]
[358283211,1744895451983,-500.0,0.0009863,120]
[358283212,1744895451993,-500.0,0.0009863,120]
[358283213,1744895452002,-500.0,0.0009863,120]
[358283214,1744895452012,-500.0,0.0009863,120]
[358283215,1744895452021,-500.0,0.0009863,120]
[358283216,1744895452031,-522.0805343,0.0009863,120]
[358283217,1744895452041,-500.0,0.0009863,120]
[358283218,1744895452050,-522.31914759,0.0009863,120]
[358283219,1744895452060,-500.0,0.0009863,120]
[358283220,1744895452166,-542.70522221,0.0009863,120]
[358283221,1744895452177,-500.0,0.0009863,120]
[358283222,1744895452186,-500.0,0.0009863,120]
[358283223,1744895452196,-500.0,0.0009863,120]
[358283224,1744895452205,-1000.0,0.0009863,120]
[358283225,1744895452215,-500.0,0.0009863,120]
[358283226,1744895452225,-500.0,0.0009863,120]
[358283227,1744895452234,-627.73494628,0.0009863,120]
[358283228,1744895452244,-164.57165954,0.0009863,120]
[358283229,1744895452254,-500.0,0.0009863,120]
[358283230,1744895452263,-530.34922434,0.0009863,120]
[358283231,1744895452274,-158.23,0.00098637,2]
[358283232,1744895452283,-909.3,0.00098938,2]
[358283233,1744895452293,-500.0,0.000999,120]
[358283234,1744895452303,-5000.0,0.001,120]
[358283235,1744895452313,-7459.2599,0.001,2]
[358283236,1744895452323,-100000.0,0.001,30]
[358283237,1744895452333,-100000.0,0.001,120]
[358283238,1744895452343,-158.23,0.00100901,2]
[358283239,1744895452353,-259.63,0.00101769,120]
[358283240,1744895452363,-150.58789,0.00102,120]
[358283241,1744895452372,-158.23,0.00103164,2]
[358283242,1744895452382,-170.0,0.0010364,120]
[358283243,1744895452392,-500.0,0.00104995,120]
[358283244,1744895452401,-500.0,0.00105095,120]
[358283245,1744895452411,-500.0,0.00105095,120]
[358283246,1744895452421,-5122.65,0.00105095,7]
[358283247,1744895452431,-500.0,0.00105095,120]
[358283248,1744895452441,-500.0,0.00105095,120]
[358283249,1744895452451,-500.0,0.00105095,120]
[358283250,1744895452460,-158.23,0.00105428,2]
[358283251,1744895452470,-991.9314,0.00106649,120]
[358283252,1744895452480,-2751.0,0.00106801,120]
[358283253,1744895452489,-269.2264042,0.00106848,120]
[358283254,1744895452499,-588.48,0.00106848,120]
[358283255,1744895452508,-500.0,0.00106848,120]
[358283256,1744895452518,-500.0,0.00106848,120]
[358283257,1744895452527,-500.0,0.00106848,120]
[358283258,1744895452536,-500.0,0.00106848,120]
[358283259,1744895452546,-500.0,0.00106848,120]
[358283260,1744895452555,-500.0,0.00106848,120]
[358283261,1744895452565,-500.0,0.00106848,120]
[358283262,1744895452577,-500.0,0.00106848,120]
[358283263,1744895452586,-2518.1,0.00106848,120]
[358283264,1744895452596,-500.0,0.00106848,120]
[358283265,1744895452606,-500.0,0.00106848,120]
[358283266,1744895452615,-500.0,0.00106848,120]
[358283267,1744895452625,-500.0,0.00106848,120]
[358283268,1744895452635,-500.0,0.00106848,120]
[358283269,1744895452644,-500.0,0.00106848,120]
[358283270,1744895452654,-500.0,0.00106848,120]
[358283271,1744895452663,-500.0,0.00106848,120]
[358283272,1744895452673,-500.0,0.00106848,120]
[358283273,1744895452683,-500.0,0.00106848,120]
[358283274,1744895452693,-500.0,0.00106848,120]
[358283275,1744895452703,-500.0,0.00106848,120]
[358283276,1744895452721,-500.0,0.00106848,120]
[358283277,1744895452734,-500.0,0.00106848,120]
[358283278,1744895452745,-500.0,0.00106848,120]
[358283279,1744895452755,-500.0,0.00106848,120]
[358283280,1744895452766,-500.0,0.00106848,120]
[358283281,1744895452776,-500.0,0.00106848,120]
[358283282,1744895452787,-500.0,0.00106848,120]
[358283283,1744895452797,-500.0,0.00106848,120]
[358283284,1744895452807,-500.0,0.00106848,120]
[358283285,1744895452818,-500.0,0.00106848,120]
[358283286,1744895452831,-500.0,0.00106848,120]
[358283287,1744895452842,-500.0,0.00106848,120]
[358283288,1744895452852,-500.0,0.00106848,30]
[358283289,1744895452863,-532.18,0.00106848,120]
[358283290,1744895452873,-500.0,0.00106848,120]
[358283291,1744895452883,-500.0,0.00106848,120]
[358283292,1744895452893,-593.94847451,0.00106849,120]
[358283293,1744895452903,-500.0,0.00106849,120]
[358283294,1744895452913,-500.0,0.00106849,120]
[358283295,1744895452923,-500.0,0.00106849,120]
[358283296,1744895452933,-500.0,0.00106849,120]
[358283297,1744895452943,-500.0,0.00106849,120]
[358283298,1744895452953,-500.0,0.00106849,120]
[358283299,1744895452970,-343.55617806,0.00106849,120]
[358283300,1744895452980,-500.0,0.00106849,120]
[358283301,1744895452990,-500.0,0.00106849,120]
[358283302,1744895452999,-500.0,0.00106849,120]
[358283303,1744895453010,-455.19851743,0.00106849,120]
[358283304,1744895453020,-500.0,0.00106849,120]
[358283305,1744895453030,-500.0,0.00106849,120]
[358283306,1744895453041,-500.0,0.00106849,120]
[358283307,1744895453052,-500.0,0.00106849,2]
[358283308,1744895453061,-500.0,0.00106849,120]
[358283309,1744895453074,-500.0,0.00106849,120]
[358283310,1744895453084,-513.35305713,0.00106849,120]
[358283311,1744895453094,-500.0,0.00106849,120]
[358283312,1744895453104,-500.0,0.00106849,120]
[358283313,1744895453115,-638.14905192,0.00106849,120]
[358283314,1744895453125,-527.32310354,0.00106849,120]
[358283315,1744895453134,-500.0,0.00106849,120]
[358283316,1744895453144,-500.0,0.00106849,120]
[358283317,1744895453154,-500.0,0.00106849,120]
[358283318,1744895453164,-500.0,0.00106849,120]
[358283319,1744895453173,-500.0,0.00106849,120]
[358283320,1744895453183,-500.0,0.00106849,120]
[358283321,1744895453192,-500.0,0.00106849,120]
[358283322,1744895453202,-500.0,0.00106849,120]
[358283323,1744895453211,-500.0,0.00106849,120]
[358283324,1744895453221,-602.39287242,0.00106849,120]
[358283325,1744895453230,-355.27529597,0.00106849,120]
[358283326,1744895453240,-500.0,0.00106849,120]
[358283327,1744895453249,-500.0,0.00106849,120]
[358283328,1744895453259,-584.76505572,0.00106849,120]
[358283329,1744895453268,-500.0,0.00106849,120]
[358283330,1744895453277,-500.0,0.00106849,120]
[358283331,1744895453287,-500.0,0.00106849,120]
[358283332,1744895453297,-500.0,0.00106849,120]
[358283333,1744895453307,-308.01229418,0.00106849,120]
[358283334,1744895453317,-517.04748036,0.00106849,120]
[358283335,1744895453327,-500.0,0.00106849,120]
[358283336,1744895453337,-500.0,0.00106849,120]
[358283337,1744895453348,-514.30053028,0.00106849,120]
[358283338,1744895453358,-500.0,0.00106849,120]
[358283339,1744895453367,-500.0,0.00106849,120]
[358283340,1744895453377,-500.0,0.00106849,120]
[358283341,1744895453386,-1000.0,0.00106849,120]
[358283342,1744895453395,-500.0,0.00106849,120]
[358283343,1744895453405,-1000.0,0.00107587,120]
[358283344,1744895453415,-158.23,0.00107692,2]
[358283345,1744895453425,-320.253,0.0011,120]
[358283346,1744895453435,-212.54,0.0011011,30]
[358283347,1744895453444,-483.98624363,0.00113214,120]
[358283348,1744895453454,-500.0,0.00113314,120]
[358283349,1744895453463,-500.0,0.00113314,120]
[358283350,1744895453474,-5122.65,0.00113314,7]
[358283351,1744895453484,-500.0,0.00113314,120]
[358283352,1744895453493,-500.0,0.00113314,120]
[358283353,1744895453503,-617.53,0.00113314,120]
[358283354,1744895453513,-1000.76,0.00114223,30]
[358283355,1744895453522,-500.0,0.00115067,120]
[358283356,1744895453532,-500.0,0.00115067,120]
[358283357,1744895453542,-2518.1,0.00115067,120]
[358283358,1744895453553,-500.0,0.00115067,120]
[358283359,1744895453563,-238.72,0.00115067,120]
[358283360,1744895453575,-500.0,0.00115067,120]
[358283361,1744895453585,-500.0,0.00115067,120]
[358283362,1744895453595,-500.0,0.00115067,120]
[358283363,1744895453604,-500.0,0.00115067,120]
[358283364,1744895453614,-500.0,0.00115067,120]
[358283365,1744895453623,-500.0,0.00115067,120]
[358283366,1744895453632,-500.0,0.00115067,120]
[358283367,1744895453641,-500.0,0.00115067,120]
[358283368,1744895453651,-532.18,0.00115067,120]
[358283369,1744895453660,-500.0,0.00115067,120]
[358283370,1744895453669,-500.0,0.00115068,120]
[358283371,1744895453679,-500.0,0.00115068,120]
[358283372,1744895453688,-571.01,0.00115068,120]
[358283373,1744895453697,-500.0,0.00115068,120]
[358283374,1744895453707,-532.44210214,0.00115068,120]
[358283375,1744895453716,-526.90384489,0.00115068,120]
[358283376,1744895453725,-500.0,0.00115068,120]
[358283377,1744895453734,-500.0,0.00115068,120]
[358283378,1744895453744,-500.0,0.00115068,120]
[358283379,1744895453754,-551.28121874,0.00115068,120]
[358283380,1744895453764,-398.7182927,0.00115068,120]